fUSD/lending_fUSD_20240828
["ID","MTS","AMOUNT","RATE_DAILY","PERIOD"]
[336509756,1724886134563,-900.9,0.00038904,120]
[336509757,1724886134635,-500.0,0.00038904,120]
[336509758,1724886134701,-2931.85,0.00038904,120]
[336509759,1724886134767,-515.09,0.00038904,120]
[336509760,1724886134838,-2222.34,0.00038904,120]
[336509761,1724886134910,-500.0,0.00038904,120]
[336509762,1724886134984,-4021.68,0.00038904,120]
[336509763,1724886135059,-500.0,0.00038904,120]
[336509764,1724886135132,-500.0,0.00038904,120]
[336509765,1724886135201,-500.0,0.00038904,120]
[336509766,1724886135280,-1957.43,0.00038904,120]
[336509767,1724886135356,-1873.73,0.00038904,120]
[336509768,1724886135428,-500.0,0.00038904,120]
[336509769,1724886135499,-2848.34,0.00038904,120]
[336509770,1724886135574,-1688.12,0.00038904,120]
[336509771,1724886135644,-857.58,0.00038904,120]
[336509772,1724886135715,-2526.15,0.00038904,120]
[336509773,1724886135784,-515.64,0.00038904,120]
[336509774,1724886135853,-2875.39,0.00038904,120]
[336509775,1724886135922,-763.62,0.00038904,120]
[336509776,1724886135991,-500.0,0.00038904,120]
[336509777,1724886136063,-638.29,0.00038904,120]
[336509778,1724886136140,-2094.16,0.00038904,120]
[336509779,1724886136211,-4377.14,0.00038904,120]
[336509780,1724886136280,-1902.16,0.00038904,120]
[336509781,1724886136355,-1021.08,0.00038904,120]
[336509782,1724886136424,-1445.03,0.00038904,120]
[336509783,1724886136489,-500.0,0.00038904,120]
[336509784,1724886136559,-500.0,0.00038904,120]
[336509785,1724886136641,-817.34,0.00038904,120]
[336509786,1724886136711,-4581.92,0.00038904,120]
[336509787,1724886136781,-751.75,0.00038904,120]
[336509788,1724886136851,-975.14,0.00038904,120]
[336509789,1724886136919,-500.0,0.00038904,120]
[336509790,1724886136985,-500.0,0.00038904,120]
[336509791,1724886137052,-500.0,0.00038904,120]
[336509792,1724886137119,-3173.41,0.00038904,120]
[336509793,1724886137187,-622.86,0.00038904,120]
[336509794,1724886137252,-863.71,0.00038904,120]
[336509795,1724886137319,-2820.17,0.00038904,120]
[336509796,1724886137391,-538.32,0.00038904,120]
[336509797,1724886137463,-1983.16,0.00038904,120]
[336509798,1724886137528,-500.0,0.00038904,120]
[336509799,1724886137590,-2072.52,0.00038904,120]
[336509800,1724886137662,-500.0,0.00038904,120]
[336509801,1724886137727,-5185.97,0.00038904,120]
[336509802,1724886137791,-900.43,0.00038904,120]
[336509803,1724886137857,-500.0,0.00038904,120]
[336509804,1724886137924,-2450.02,0.00038904,120]
[336509805,1724886137993,-500.0,0.00038904,120]
[336509806,1724886138061,-500.0,0.00038904,120]
[336509807,1724886138136,-2219.02,0.00038904,120]
[336509808,1724886138214,-2951.75,0.00038904,120]
[336509809,1724886138305,-500.0,0.00038904,120]
[336509810,1724886138374,-1957.89,0.00038904,120]
[336509811,1724886138461,-524.95,0.00038904,120]
[336509812,1724886138527,-500.0,0.00038904,120]
[336509813,1724886138612,-1897.55,0.00038904,120]
[336509814,1724886138692,-500.0,0.00038904,120]
[336509815,1724886138774,-667.26,0.00038904,120]
[336509816,1724886138842,-1496.51,0.00038904,120]
[336509817,1724886138929,-500.0,0.00038904,120]
[336509818,1724886138994,-618.31,0.00038904,120]
[336509819,1724886139063,-502.07,0.00038904,120]
[336509820,1724886139132,-500.0,0.00038904,120]
[336509821,1724886139203,-702.1,0.00038904,120]
[336509822,1724886139277,-982.14,0.00038904,120]
[336509823,1724886139372,-3852.4,0.00038904,120]
[336509824,1724886139449,-1405.46,0.00038904,120]
[336509825,1724886139547,-500.0,0.00038904,120]
[336509826,1724886139639,-500.0,0.00038904,120]
[336509827,1724886139728,-3827.11,0.00038904,120]
[336509828,1724886139817,-501.47218843,0.00038904,120]
[336509829,1724886139893,-500.0,0.00038904,120]
[336509830,1724886139967,-500.0,0.00038904,120]
[336509831,1724886140034,-700.52,0.00038904,120]
[336509832,1724886140104,-1745.31,0.00038904,120]
[336509833,1724886140169,-500.0,0.00038904,120]
[336509834,1724886140447,-500.0,0.00038904,120]
[336509835,1724886140512,-500.0,0.00038904,120]
[336509836,1724886140578,-1884.58,0.00038904,120]
[336509837,1724886140646,-5023.0,0.00038904,120]
[336509838,1724886140712,-1444.99,0.00038904,120]
[336509839,1724886140775,-991.34,0.00038904,120]
[336509840,1724886140839,-4408.28,0.00038904,120]
[336509841,1724886140904,-500.0,0.00038904,120]
[336509842,1724886140974,-2115.31,0.00038904,120]
[336509843,1724886141040,-500.0,0.00038904,120]
[336509844,1724886141108,-647.22997636,0.00038904,120]
[336509845,1724886141173,-500.0,0.00038904,120]
[336509846,1724886141242,-500.0,0.00038904,120]
[336509847,1724886141316,-4180.48,0.00038904,120]
[336509848,1724886141387,-1905.86,0.00038904,120]
[336509849,1724886141455,-500.0,0.00038904,120]
[336509850,1724886141520,-1827.8,0.00038904,120]
[336509851,1724886141587,-847.94,0.00038904,120]
[336509852,1724886141652,-416.18592951,0.00038904,120]
[336509853,1724886141718,-1558.35,0.00038904,120]
[336509854,1724886141781,-1177.48,0.00038904,120]
[336509855,1724886141846,-1075.03,0.00038904,120]
[336509856,1724886141914,-2271.18,0.00038904,120]
[336509857,1724886141980,-500.0,0.00038904,120]
[336509858,1724886142045,-3151.5,0.00038904,120]
[336509859,1724886142107,-1348.64,0.00038904,120]
[336509860,1724886142172,-807.9,0.00038904,120]
[336509861,1724886142238,-4982.06,0.00038904,120]
[336509862,1724886142305,-688.3,0.00038904,120]
[336509863,1724886142371,-13665.63,0.00038904,120]
[336509864,1724886142440,-3805.38,0.00038904,120]
[336509865,1724886142507,-2560.73,0.00038904,120]
[336509866,1724886142572,-1172.39,0.00038904,120]
[336509867,1724886142636,-2041.34,0.00038904,120]
[336509868,1724886142699,-500.0,0.00038904,120]
[336509869,1724886142763,-777.36,0.00038904,120]
[336509870,1724886142828,-500.0,0.00038904,120]
[336509871,1724886142890,-500.0,0.00038904,120]
[336509872,1724886142954,-2416.27,0.00038904,120]
[336509873,1724886143020,-515.92,0.00038904,120]
[336509874,1724886143089,-1966.88,0.00038904,120]
[336509875,1724886143154,-2200.6,0.00038904,120]
[336509876,1724886143225,-1464.95,0.00038904,120]
[336509877,1724886143297,-680.75,0.00038904,120]
[336509878,1724886143366,-1610.62,0.00038904,120]
[336509879,1724886143433,-1802.93,0.00038904,120]
[336509880,1724886143498,-889.59,0.00038904,120]
[336509881,1724886143561,-500.0,0.00038904,120]
[336509882,1724886143626,-884.49,0.00038904,120]
[336509883,1724886143695,-1518.07,0.00038904,120]
[336509884,1724886143760,-500.0,0.00038904,120]
[336509885,1724886143821,-204.40482104,0.00038904,120]
[336509886,1724886143884,-500.0,0.00038904,120]
[336509887,1724886143954,-500.0,0.00038904,120]
[336509888,1724886144020,-5381.15,0.00038904,120]
[336509889,1724886144089,-2692.14,0.00038904,120]
[336509890,1724886144162,-2738.32,0.00038904,120]
[336509891,1724886144227,-500.0,0.00038904,120]
[336509892,1724886144297,-1186.74,0.00038904,120]
[336509893,1724886144369,-500.0,0.00038904,120]
[336509894,1724886144437,-4920.23,0.00038904,120]
[336509895,1724886144511,-1636.28,0.00038904,120]
[336509896,1724886144579,-500.0,0.00038904,120]
[336509897,1724886144645,-4461.11,0.00038904,120]
[336509898,1724886144711,-584.44,0.00038904,120]
[336509899,1724886144780,-2310.82,0.00038904,120]
[336509900,1724886144852,-1753.62,0.00038904,120]
[336509901,1724886144923,-874.81,0.00038904,120]
[336509902,1724886144990,-1904.86,0.00038904,120]
[336509903,1724886145064,-2231.81,0.00038904,120]
[336509904,1724886145137,-3697.72,0.00038904,120]
[336509905,1724886145212,-1587.02,0.00038904,120]
[336509906,1724886145281,-1128.87,0.00038904,120]
[336509907,1724886145355,-522.20999468,0.00038904,120]
[336509908,1724886145425,-500.0,0.00038904,120]
[336509909,1724886145492,-702.15,0.00038904,120]
[336509910,1724886145558,-500.0,0.00038904,120]
[336509911,1724886145626,-500.0,0.00038904,120]
[336509912,1724886145693,-1272.86,0.00038904,120]
[336509913,1724886145757,-914.88,0.00038904,120]
[336509914,1724886145826,-3462.98,0.00038904,120]
[336509915,1724886145892,-756.72,0.00038904,120]
[336509916,1724886145968,-3050.55,0.00038904,120]
[336509917,1724886146032,-500.0,0.00038904,120]
[336509918,1724886146097,-520.59532404,0.00038904,120]
[336509919,1724886146170,-500.0,0.00038904,120]
[336509920,1724886146236,-625.30631215,0.00038904,120]
[336509921,1724886146300,-500.0,0.00038904,120]
[336509922,1724886146367,-2738.01,0.00038904,120]
[336509923,1724886146435,-2179.6,0.00038904,120]
[336509924,1724886146500,-500.0,0.00038904,120]
[336509925,1724886146562,-2028.44,0.00038904,120]
[336509926,1724886146635,-1129.95,0.00038904,120]
[336509927,1724886146722,-2154.88,0.00038904,120]
[336509928,1724886146796,-2547.63,0.00038904,120]
[336509929,1724886146863,-1664.07,0.00038904,120]
[336509930,1724886146934,-500.0,0.00038904,120]
[336509931,1724886147003,-1302.57,0.00038904,120]
[336509932,1724886147069,-500.0,0.00038904,120]
[336509933,1724886147138,-1080.41,0.00038904,120]
[336509934,1724886147209,-620.45,0.00038904,120]
[336509935,1724886147278,-1218.33,0.00038904,120]
[336509936,1724886147349,-3176.93,0.00038904,120]
[336509937,1724886147422,-2148.51,0.00038904,120]
[336509938,1724886147696,-2260.52,0.00038904,120]
[336509939,1724886147764,-1633.17,0.00038904,120]
[336509940,1724886147827,-2675.65,0.00038904,120]
[336509941,1724886147889,-651.82,0.00038904,120]
[336509942,1724886147953,-2530.91,0.00038904,120]
[336509943,1724886148018,-500.0,0.00038904,120]
[336509944,1724886148083,-818.49,0.00038904,120]
[336509945,1724886148146,-3796.19,0.00038904,120]
[336509946,1724886148212,-500.0,0.00038904,120]
[336509947,1724886148280,-500.0,0.00038904,120]
[336509948,1724886148351,-1143.18,0.00038904,120]
[336509949,1724886148414,-500.0,0.00038904,120]
[336509950,1724886148478,-1126.3,0.00038904,120]
[336509951,1724886148542,-1884.9,0.00038904,120]
[336509952,1724886148607,-15165.5,0.00038904,120]
[336509953,1724886148669,-1808.21,0.00038904,120]
[336509954,1724886148730,-1729.49,0.00038904,120]
[336509955,1724886148793,-1406.33,0.00038904,120]
[336509956,1724886148856,-896.18,0.00038904,120]
[336509957,1724886148918,-500.0,0.00038904,120]
[336509958,1724886148980,-500.0,0.00038904,120]
[336509959,1724886149046,-500.0,0.00038904,120]
[336509960,1724886149118,-2264.82,0.00038904,120]
[336509961,1724886149186,-750.39,0.00038904,120]
[336509962,1724886149254,-2606.78,0.00038904,120]
[336509963,1724886149322,-2822.94,0.00038904,120]
[336509964,1724886149393,-500.0,0.00038904,120]
[336509965,1724886149463,-578.02,0.00038904,120]
[336509966,1724886149527,-500.0,0.00038904,120]
[336509967,1724886149593,-4283.14,0.00038904,120]
[336509968,1724886149663,-991.0,0.00038904,120]
[336509969,1724886149736,-1130.55,0.00038904,120]
[336509970,1724886149814,-4636.4,0.00038904,120]
[336509971,1724886149882,-822.47,0.00038904,120]
[336509972,1724886149947,-500.0,0.00038904,120]
[336509973,1724886150016,-1604.72,0.00038904,120]
[336509974,1724886150086,-1630.01,0.00038904,120]
[336509975,1724886150153,-500.0,0.00038904,120]
[336509976,1724886150224,-590.45,0.00038904,120]
[336509977,1724886150298,-500.0,0.00038904,120]
[336509978,1724886150370,-1992.42,0.00038904,120]
[336509979,1724886150439,-513.4,0.00038904,120]
[336509980,1724886150504,-1200.17,0.00038904,120]
[336509981,1724886150569,-1227.48,0.00038904,120]
[336509982,1724886150637,-500.0,0.00038904,120]
[336509983,1724886150700,-496.9918091,0.00038904,120]
[336509984,1724886150765,-500.0,0.00038904,120]
[336509985,1724886150829,-500.0,0.00038904,120]
[336509986,1724886150895,-500.0,0.00038904,120]
[336509987,1724886150964,-947.51,0.00038904,120]
[336509988,1724886151029,-541.28,0.00038904,120]
[336509989,1724886151093,-970.41,0.00038904,120]
[336509990,1724886151162,-2066.23,0.00038904,120]
[336509991,1724886151231,-500.0,0.00038904,120]
[336509992,1724886151302,-2053.24,0.00038904,120]
[336509993,1724886151369,-1902.05,0.00038904,120]
[336509994,1724886151434,-775.02,0.00038904,120]
[336509995,1724886151503,-1198.98,0.00038904,120]
[336509996,1724886151573,-1868.02,0.00038904,120]
[336509997,1724886151642,-520.97,0.00038904,120]
[336509998,1724886151708,-506.54846391,0.00038904,120]
[336509999,1724886151774,-500.0,0.00038904,120]
[336510000,1724886151839,-1203.1,0.00038904,120]
[336510001,1724886151909,-500.0,0.00038904,120]
[336510002,1724886151980,-656.55,0.00038904,120]
[336510003,1724886152050,-737.24,0.00038904,120]
[336510004,1724886152123,-2003.7,0.00038904,120]
[336510005,1724886152197,-500.0,0.00038904,120]
[336510006,1724886152272,-737.92,0.00038904,120]
[336510007,1724886152343,-882.93,0.00038904,120]
[336510008,1724886152414,-2200.21,0.00038904,120]
[336510009,1724886152486,-500.0,0.00038904,120]
[336510010,1724886152552,-1781.49,0.00038904,120]
[336510011,1724886152616,-263.96,0.00038904,120]
[336510012,1724886152688,-500.0,0.00038904,120]
[336510013,1724886152757,-500.0,0.00038904,120]
[336510014,1724886152826,-1795.66,0.00038904,120]
[336510015,1724886152895,-2037.21,0.00038904,120]
[336510016,1724886152967,-500.0,0.00038904,120]
[336510017,1724886153039,-500.0,0.00038904,120]
[336510018,1724886153113,-500.0,0.00038904,120]
[336510019,1724886153185,-856.07,0.00038904,120]
[336510020,1724886153257,-678.81,0.00038904,120]
[336510021,1724886153332,-500.0,0.00038904,120]
[336510022,1724886153405,-2021.33,0.00038904,120]
[336510023,1724886153478,-3561.56,0.00038904,120]
[336510024,1724886153545,-842.28,0.00038904,120]
[336510025,1724886153611,-1563.68,0.00038904,120]
[336510026,1724886153684,-500.0,0.00038904,120]
[336510027,1724886153754,-500.0,0.00038904,120]
[336510028,1724886153818,-500.0,0.00038904,120]
[336510029,1724886153884,-727.73,0.00038904,120]
[336510030,1724886153956,-500.0,0.00038904,120]
[336510031,1724886154021,-523.98,0.00038904,120]
[336510032,1724886154088,-633.3,0.00038904,120]
[336510033,1724886154158,-1724.83,0.00038904,120]
[336510034,1724886154230,-2406.05,0.00038904,120]
[336510035,1724886154298,-2580.18,0.00038904,120]
[336510036,1724886154366,-513.81353761,0.00038904,120]
[336510037,1724886154443,-500.0,0.00038904,120]
[336510038,1724886154508,-2875.69,0.00038904,120]
[336510039,1724886154572,-1926.97,0.00038904,120]
[336510040,1724886154639,-1103.03,0.00038904,120]
[336510041,1724886154707,-500.0,0.00038904,120]
[336510042,1724886154981,-500.0,0.00038904,120]
[336510043,1724886155050,-666.38,0.00038904,120]
[336510044,1724886155117,-497.58,0.00038904,120]
[336510045,1724886155181,-500.0,0.00038904,120]
[336510046,1724886155250,-500.0,0.00038904,120]
[336510047,1724886155314,-500.0,0.00038904,120]
[336510048,1724886155378,-500.0,0.00038904,120]
[336510049,1724886155444,-616.83,0.00038904,120]
[336510050,1724886155507,-2590.19,0.00038904,120]
[336510051,1724886155562,-637.96,0.00038904,120]
[336510052,1724886155618,-500.0,0.00038904,120]
[336510053,1724886155679,-592.98,0.00038904,120]
[336510054,1724886155739,-4537.85,0.00038904,120]
[336510055,1724886155796,-1452.52,0.00038904,120]
[336510056,1724886155860,-3847.19,0.00038904,120]
[336510057,1724886155947,-1060.29,0.00038904,120]
[336510058,1724886156017,-2206.8,0.00038904,120]
[336510059,1724886156107,-539.08,0.00038904,120]
[336510060,1724886156188,-1387.41,0.00038904,120]
[336510061,1724886156264,-554.78,0.00038904,120]
[336510062,1724886156327,-544.47,0.00038904,120]
[336510063,1724886156389,-1991.52,0.00038904,120]
[336510064,1724886156453,-464.10684051,0.00038904,120]
[336510065,1724886156516,-1270.9,0.00038904,120]
[336510066,1724886156579,-1867.99,0.00038904,120]
[336510067,1724886156646,-520.58,0.00038904,120]
[336510068,1724886156708,-1561.85,0.00038904,120]
[336510069,1724886156775,-500.0,0.00038904,120]
[336510070,1724886156839,-2072.63,0.00038904,120]
[336510071,1724886156902,-1839.77,0.00038904,120]
[336510072,1724886156968,-500.0,0.00038904,120]
[336510073,1724886157034,-500.0,0.00038904,120]
[336510074,1724886157102,-662.84,0.00038904,120]
[336510075,1724886157182,-500.0,0.00038904,120]
[336510076,1724886157248,-500.0,0.00038904,120]
[336510077,1724886157315,-500.0,0.00038904,120]
[336510078,1724886157379,-1383.46,0.00038904,120]
[336510079,1724886157441,-2311.37,0.00038904,120]
[336510080,1724886157501,-2225.0,0.00038981,71]
[336510081,1724886157562,-50000.0,0.00039,39]
[336510082,1724886157623,-15781.34791939,0.00039,30]
[336510083,1724886157687,-7522.09078441,0.00039,30]
[336510084,1724886157747,-160.0,0.00039,30]
[336510085,1724886157809,-500.0,0.00039178,120]
[336510086,1724886157868,-500.0,0.00039178,120]
[336510087,1724886157930,-500.0,0.00039178,120]
[336510088,1724886157993,-600.47,0.00039178,120]
[336510089,1724886158058,-372.98579114,0.00039178,120]
[336510090,1724886158129,-500.0,0.00039178,120]
[336510091,1724886158204,-500.0,0.00039178,120]
[336510092,1724886158274,-283.52,0.00039178,120]
[336510093,1724886158338,-560.05,0.00039178,120]
[336510094,1724886158399,-2997.01,0.00039178,120]
[336510095,1724886158456,-500.0,0.00039178,120]
[336510096,1724886158514,-1838.19,0.00039178,120]
[336510097,1724886158566,-505.45798422,0.00039178,120]
[336510098,1724886158617,-1731.8,0.00039178,120]
[336510099,1724886158672,-500.0,0.00039178,120]
[336510100,1724886158725,-694.65,0.00039178,120]
[336510101,1724886158777,-1091.94,0.00039178,120]
[336510102,1724886158834,-3870.37,0.00039178,120]
[336510103,1724886158890,-902.42,0.00039178,120]
[336510104,1724886158946,-500.0,0.00039178,120]
[336510105,1724886159007,-4019.78,0.00039178,120]
[336510106,1724886159071,-3115.98,0.00039178,120]
[336510107,1724886159139,-500.0,0.00039178,120]
[336510108,1724886159205,-610.54,0.00039178,120]
[336510109,1724886159275,-1670.06,0.00039178,120]
[336510110,1724886159345,-715.66,0.00039178,120]
[336510111,1724886159409,-654.17,0.00039178,120]
[336510112,1724886159481,-690.26,0.00039178,120]
[336510113,1724886159544,-500.0,0.00039178,120]
[336510114,1724886159610,-500.0,0.00039178,120]
[336510115,1724886159672,-3579.81,0.00039178,120]
[336510116,1724886159735,-557.91,0.00039178,120]
[336510117,1724886159798,-500.0,0.00039178,120]
[336510118,1724886159858,-1770.22,0.00039178,120]
[336510119,1724886159928,-1101.4,0.00039178,120]
[336510120,1724886159996,-725.33,0.00039178,120]
[336510121,1724886160062,-1339.63,0.00039178,120]
[336510122,1724886160129,-500.0,0.00039178,120]
[336510123,1724886160194,-575.45,0.00039178,120]
[336510124,1724886160264,-500.0,0.00039178,120]
[336510125,1724886160331,-567.05493172,0.00039178,120]
[336510126,1724886160395,-1147.76,0.00039178,120]
[336510127,1724886160455,-864.87,0.00039178,120]
[336510128,1724886160519,-734.35,0.00039178,120]
[336510129,1724886160576,-500.0,0.00039178,120]
[336510130,1724886160637,-1201.5,0.00039178,120]
[336510131,1724886160701,-4258.55,0.00039178,120]
[336510132,1724886160760,-1369.79,0.00039178,120]
[336510133,1724886160819,-500.0,0.00039178,120]
[336510134,1724886160880,-500.0,0.00039178,120]
[336510135,1724886160938,-500.0,0.00039178,120]
[336510136,1724886160994,-1370.96,0.00039178,120]
[336510137,1724886161054,-500.0,0.00039178,120]
[336510138,1724886161111,-1208.19,0.00039178,120]
[336510139,1724886161170,-500.0,0.00039178,120]
[336510140,1724886161236,-533.06,0.00039178,120]
[336510141,1724886161303,-551.99,0.00039178,120]
[336510142,1724886161361,-500.0,0.00039178,120]
[336510143,1724886161420,-916.66,0.00039178,120]
[336510144,1724886161480,-1754.5,0.00039178,120]
[336510145,1724886161534,-500.0,0.00039178,120]
[336510146,1724886161798,-500.0,0.00039178,120]
[336510147,1724886161858,-2599.97,0.00039178,120]
[336510148,1724886161920,-500.0,0.00039178,120]
[336510149,1724886161988,-500.0,0.00039178,120]
[336510150,1724886162047,-500.0,0.00039178,120]
[336510151,1724886162116,-500.0,0.00039178,120]
[336510152,1724886162188,-2482.47,0.00039178,120]
[336510153,1724886162259,-732.18,0.00039178,120]
[336510154,1724886162324,-633.57111945,0.00039178,120]
[336510155,1724886162387,-500.0,0.00039178,120]
[336510156,1724886162455,-500.0,0.00039178,120]
[336510157,1724886162514,-500.0,0.00039178,120]
[336510158,1724886162573,-1459.18,0.00039178,120]
[336510159,1724886162635,-926.61,0.00039178,120]
[336510160,1724886162721,-583.51,0.00039178,120]
[336510161,1724886162784,-703.97,0.00039178,120]
[336510162,1724886162850,-1237.13,0.00039178,120]
[336510163,1724886162914,-2076.73,0.00039178,120]
[336510164,1724886162988,-652.83,0.00039178,120]
[336510165,1724886163049,-3514.67,0.00039178,120]
[336510166,1724886163109,-727.0,0.00039178,120]
[336510167,1724886163177,-500.0,0.00039178,120]
[336510168,1724886163245,-928.47,0.00039178,120]
[336510169,1724886163315,-500.0,0.00039178,120]
[336510170,1724886163378,-4774.12,0.00039178,120]
[336510171,1724886163433,-500.0,0.00039178,120]
[336510172,1724886163492,-500.0,0.00039178,120]
[336510173,1724886163551,-1064.54,0.00039178,120]
[336510174,1724886163606,-500.0,0.00039178,120]
[336510175,1724886163663,-500.0,0.00039178,120]
[336510176,1724886163719,-500.0,0.00039178,120]
[336510177,1724886163773,-500.0,0.00039178,120]
[336510178,1724886163828,-500.0,0.00039178,120]
[336510179,1724886163884,-578.43,0.00039178,120]
[336510180,1724886163938,-1779.79,0.00039178,120]
[336510181,1724886163991,-500.0,0.00039178,120]
[336510182,1724886164051,-500.0,0.00039178,120]
[336510183,1724886164116,-1416.66,0.00039178,120]
[336510184,1724886164185,-3210.07,0.00039178,120]
[336510185,1724886164252,-500.0,0.00039178,120]
[336510186,1724886164320,-683.48,0.00039178,120]
[336510187,1724886164388,-1426.45,0.00039178,120]
[336510188,1724886164450,-1155.3,0.00039178,120]
[336510189,1724886164510,-953.05,0.00039178,120]
[336510190,1724886164575,-1953.57,0.00039178,120]
[336510191,1724886164637,-500.0,0.00039178,120]
[336510192,1724886164696,-500.0,0.00039178,120]
[336510193,1724886164761,-521.17,0.00039178,120]
[336510194,1724886164825,-500.0,0.00039178,120]
[336510195,1724886164884,-500.0,0.00039178,120]
[336510196,1724886164950,-500.0,0.00039178,120]
[336510197,1724886165011,-2061.37,0.00039178,120]
[336510198,1724886165081,-500.0,0.00039178,120]
[336510199,1724886165146,-1334.57,0.00039178,120]
[336510200,1724886165210,-746.59,0.00039178,120]
[336510201,1724886165275,-663.07,0.00039178,120]
[336510202,1724886165340,-500.0,0.00039178,120]
[336510203,1724886165405,-500.0,0.00039178,120]
[336510204,1724886165468,-500.0,0.00039178,120]
[336510205,1724886165528,-1030.68,0.00039178,120]
[336510206,1724886165597,-500.0,0.00039178,120]
[336510207,1724886165663,-910.03,0.00039178,120]
[336510208,1724886165722,-500.0,0.00039178,120]
[336510209,1724886165782,-3077.64,0.00039178,120]
[336510210,1724886165841,-602.48,0.00039178,120]
[336510211,1724886165900,-500.0,0.00039178,120]
[336510212,1724886165961,-2165.38,0.00039178,120]
[336510213,1724886166023,-585.27,0.00039178,120]
[336510214,1724886166087,-500.0,0.00039178,120]
[336510215,1724886166147,-500.0,0.00039178,120]
[336510216,1724886166206,-2823.61,0.00039178,120]
[336510217,1724886166267,-500.0,0.00039178,120]
[336510218,1724886166330,-500.0,0.00039178,120]
[336510219,1724886166390,-500.0,0.00039178,120]
[336510220,1724886166450,-383.50134236,0.00039178,120]
[336510221,1724886166510,-548.35,0.00039178,120]
[336510222,1724886166571,-529.15,0.00039178,120]
[336510223,1724886166633,-500.0,0.00039178,120]
[336510224,1724886166695,-548.13,0.00039178,120]
[336510225,1724886166773,-500.0,0.00039178,120]
[336510226,1724886166856,-500.0,0.00039178,120]
[336510227,1724886166940,-2554.35,0.00039178,120]
[336510228,1724886167004,-500.0,0.00039178,120]
[336510229,1724886167068,-500.0,0.00039178,120]
[336510230,1724886167130,-500.0,0.00039178,120]
[336510231,1724886167190,-500.0,0.00039178,120]
[336510232,1724886167252,-699.03,0.00039178,120]
[336510233,1724886167315,-676.5,0.00039178,120]
[336510234,1724886167380,-500.0,0.00039178,120]
[336510235,1724886167442,-3388.55,0.00039178,120]
[336510236,1724886167501,-500.0,0.00039178,120]
[336510237,1724886167562,-535.76,0.00039178,120]
[336510238,1724886167625,-1000.0,0.00039178,120]
[336510239,1724886167685,-500.0,0.00039178,120]
[336510240,1724886167747,-1865.1,0.00039178,120]
[336510241,1724886167808,-541.75,0.00039178,120]
[336510242,1724886167872,-1770.24,0.00039178,120]
[336510243,1724886167938,-901.56,0.00039178,120]
[336510244,1724886168004,-2524.53,0.00039178,120]
[336510245,1724886168075,-500.0,0.00039178,120]
[336510246,1724886168144,-547.68,0.00039178,120]
[336510247,1724886168211,-2488.01,0.00039178,120]
[336510248,1724886168282,-710.96,0.00039178,120]
[336510249,1724886168532,-334.2561898,0.00039178,120]
[336510250,1724886168634,-813.62,0.00039178,120]
[336510251,1724886168701,-508.67,0.00039178,120]
[336510252,1724886168765,-506.14,0.00039178,120]
[336510253,1724886168826,-612.27,0.00039178,120]
[336510254,1724886168889,-2252.59,0.00039178,120]
[336510255,1724886168959,-500.0,0.00039178,120]